Cogmind - Beta 15 @@@ ROGUE MODE // 2025.05.28 @ 13:33:54 Player: Moddy Result: Destroyed by H-71 Marshal with Heavy Mass Driver Performance ------------- Evolutions (5) 2500 Regions Visited (7) 1400 Robots Destroyed (91) 455 Value Destroyed (3309) 3309 Prototype IDs (9) 180 Alien Tech Used (0) 0 Bonus (638) 638 TOTAL SCORE: 8482 Bonus ------- Pacifist 200 Follower Combat Kills 574 Friendly Fire -136 Cogmind --------- Core Integrity 0/1000 Matter 268/300 Energy 15/100 System Corruption 25% Temperature Warning (328) Movement Core (500) Ox9 Location -5/Factory Parts ------- > --- POWER (2) -------- (None) > --- PROPULSION (5) --- (None) > --- UTILITY (6) ------ Large Storage Unit Advanced Targeting Computer Improved Target Analyzer > --- WEAPON (4) ------- Tesla Rifle Improved Remote Datajack > --- INVENTORY (15) --- Improved Heat Sink Target Analyzer Improved Target Analyzer Core Analyzer Recoil Stabilizer Improved Thermal Shield EM Disruption Field Chainsword Peak State ------------ > --- POWER ------------ Micro Fission Core Micro Fission Core > --- PROPULSION ------- Carbon-fiber Leg Antigrav System Antigrav System Antigrav System Linear Gravjet > --- UTILITY ---------- Improved Heat Sink Large Storage Unit Advanced Targeting Computer Advanced Targeting Computer Improved Target Analyzer Improved Shield Generator > --- WEAPON ----------- Tesla Rifle Wave Gun Wave Gun Improved KE Penetrator > --- INVENTORY -------- Micro Fission Core Carbon-fiber Leg Antigrav System Improved Heat Sink Target Analyzer Improved Target Analyzer Core Analyzer Recoil Stabilizer Improved Thermal Shield EM Disruption Field Tesla Rifle Tesla Rifle Wave Gun Improved Remote Datajack Chainsword [Rating: 90] Favorites ----------- Power Improved Ion Engine Engine Improved Ion Engine Power Core Fission Core Propulsion Improved Treads Treads Improved Treads Leg Carbon-fiber Leg Wheel Compact Wheel Hover Unit Antigrav System Flight Unit Cooled VTOL Module Utility Large Storage Unit Device Transmission Jammer Storage Large Storage Unit Processor Advanced Targeting Computer Protection Improved Utility Shielding Weapon Cooled Pulse Rifle Energy Gun Cooled Pulse Rifle Energy Cannon Heavy Plasma Cannon Ballistic Gun Heavy Assault Rifle Ballistic Cannon Bore Cannon Launcher Missile Launcher Special Weapon Improved Remote Datajack Slashing Weapon Chainsword Build | -11 -10 -9 -8 -7 -6 -6 -5 ------- Run | Yrd Mat Mat Mat Fac Fac Ext Fac Slots Evolved 10 | . . 2 2 2 2 . 2 Power 1 | . . . 1 . . . . Propulsion 3 | . . 2 . . . . 1 Utility 4 | . . . 1 1 1 . 1 Weapon 2 | . . . . 1 1 . . Parts Attached 115 | 6 1 16 21 18 6 10 37 Power 17 | 1 . 3 1 3 1 2 6 Engine 9 | 1 . 3 1 1 . 1 2 Core 8 | . . . . 2 1 1 4 Reactor . | . . . . . . . . Propulsion 37 | 2 . 6 12 1 1 4 11 Treads 17 | . . 6 5 1 1 4 . Leg 10 | . . . 4 . . . 6 Wheel 2 | 2 . . . . . . . Hover 5 | . . . . . . . 5 Flight 3 | . . . 3 . . . . Utility 24 | 1 1 3 5 3 2 . 9 Device 12 | . . 2 2 . 1 . 7 Storage 5 | 1 1 1 2 . . . . Processor 4 | . . . . 2 . . 2 Hackware . | . . . . . . . . Protection 3 | . . . 1 1 1 . . Artifact . | . . . . . . . . Weapon 37 | 2 . 4 3 11 2 4 11 Energy Gun 17 | 2 . 1 . 6 . . 8 Energy Cannon 5 | . . . 1 3 1 . . Ballistic Gun 4 | . . 1 . 2 . . 1 Ballistic Cannon 5 | . . . 2 . . 3 . Launcher 4 | . . 2 . . 1 1 . Special Weapon 1 | . . . . . . . 1 Impact Weapon . | . . . . . . . . Slashing Weapon 1 | . . . . . . . 1 Piercing Weapon . | . . . . . . . . Special Melee Weapon . | . . . . . . . . Unidentified Prototypes 5 | . . 1 1 2 . . 1 Parts Lost 64 | . . 4 6 7 . 3 44 Power 10 | . . 1 . 1 . . 8 Propulsion 20 | . . 1 3 . . 1 15 Utility 13 | . . . 2 2 . . 9 Weapon 21 | . . 2 1 4 . 2 12 Highest Loss Streak 15 | . . 3 4 2 . 1 15 To Critical Strikes . | . . . . . . . . Average Backups 13 | 3 6 9 12 14 14 14 12 Power . | . 1 . . . . . . Propulsion 4 | 2 4 3 4 5 4 4 2 Utility 6 | . . 2 6 6 8 8 6 Weapon 2 | . 1 2 2 2 2 1 2 Tool/Special . | . . . . . . . . Unused Backups 25 | . . 5 3 2 2 5 8 Power 1 | . . 1 . . . . . Propulsion 3 | . . . . 1 . 1 1 Utility 17 | . . 1 3 1 1 4 7 Weapon 4 | . . 3 . . 1 . . Tool/Special . | . . . . . . . . Average Slot Usage (%) 97 | . 85 98 99 98 99 99 90 Engine 7 | . 14 10 18 11 4 3 3 Core 4 | . . . . 3 7 9 5 Treads 23 | . . 30 20 29 26 25 7 Leg 3 | . . . 12 . . . 11 Wheel 2 | . 28 12 2 . . . . Hover 1 | . . . . . . . 6 Device 7 | . . 10 13 4 5 6 10 Storage 7 | . 14 11 9 7 6 6 5 Processor 9 | . . . . 10 13 13 14 Protection 4 | . . . 4 6 6 6 1 Energy Gun 10 | . 28 12 2 10 13 11 7 Energy Cannon 3 | . . . 3 3 6 6 1 Ballistic Gun 1 | . . 7 . 2 . . 1 Ballistic Cannon 2 | . . . 3 3 . 5 4 Launcher 2 | . . 2 9 1 6 2 . Peak Build Rating 90 | 6 7 14 34 42 55 62 90 Average Rating 42 | 4 6 12 21 36 50 57 69 On Entrance 26 | . 6 6 14 26 41 55 62 Naked Turns . | . . . . . . . . Heaviest Build 77 | 13 28 31 45 58 61 73 77 Greatest Support 96 | 26 26 63 92 92 92 96 96 Greatest Overweight (x) 8 | . 1 1 8 . . 1 4 Average Overweight (x) . | . . . . . . . . Largest Inventory Capacity 15 | 8 15 15 15 15 15 15 15 Average Capacity 14 | 7 14 10 14 15 15 15 15 Most Carried 15 | 6 6 13 15 15 15 15 15 Average Carried 13 | 4 6 9 12 14 14 14 12 Final Capacity 15 | 8 15 10 15 15 15 15 15 Final Carried 15 | 6 6 10 15 15 15 15 8 Class Distribution -------------------- 35% | Gunner 23% | Scavenger-Mutant 16% | Commander-Gunner 12% | Scavenger-Gunner 11% | Mutant Dominant Class ---------------- Mutant | -10/Materials Scavenger-Mutant | -9/Materials Mutant | -8/Materials Gunner | -7/Factory Gunner | -6/Factory Commander-Gunner | -6/Extension Scavenger-Gunner | -5/Factory Resources | -11 -10 -9 -8 -7 -6 -6 -5 ----------- Run | Yrd Mat Mat Mat Fac Fac Ext Fac Matter Collected 2785 | 260 . 412 468 512 145 311 677 Remotely 281 | . . . 281 . . . . Salvage Created 3491 | . . 762 219 579 288 912 731 Parts 171 | . . 48 19 28 9 30 37 Haulers Intercepted 1 | . . . 1 . . . . Recyclers Shooed 4 | . . . . 2 1 1 . Parts Field Recycled . | . . . . . . . . Retrieved Matter . | . . . . . . . . Parts Self-Destructed . | . . . . . . . . Prevented . | . . . . . . . . Kills | -11 -10 -9 -8 -7 -6 -6 -5 ------- Run | Yrd Mat Mat Mat Fac Fac Ext Fac Combat Hostiles Destroyed 65 | . . 21 8 11 2 11 12 Melee 3 | . . . . . . . 3 Guns 29 | . . 14 2 6 . 4 3 Cannons 15 | . . . 1 4 1 6 3 AOE 15 | . . 7 5 . 1 . 2 Classes Destroyed 16 | . . 7 4 2 1 1 1 Worker 5 | . . 1 2 1 1 . . Builder 3 | . . . 2 1 . . . Tunneler 2 | . . . 1 1 . . . Hauler 1 | . . . 1 . . . . Recycler 4 | . . . . . 2 2 . Operator 2 | . . 1 1 . . . . Watcher 8 | . . 2 . 1 1 3 1 Swarmer 14 | . . 7 4 . . 3 . Grunt 18 | . . 8 3 3 . . 4 Brawler 1 | . . 1 . . . . . Duelist 1 | . . . . 1 . . . Sentry 14 | . . 5 . 1 1 7 . Specialist 2 | . . . . . . . 2 Hunter 7 | . . . 1 3 1 . 2 Programmer 7 | . . . . 3 . . 4 Behemoth 1 | . . . . . . 1 . Butcher 1 | . . . . . . 1 . Best Kill Streak 9 | . . 7 9 4 3 4 4 Combat Bots Only 7 | . . 7 5 3 1 3 3 Max Kills in Single Turn 3 | . . 2 3 1 1 1 2 Gunslinging . | . . . . . . . . Exploded 2 | . . 2 2 . 1 . 2 Melee 1 | . . . . . . . 1 Uniques/NPCs Destroyed . | . . . . . . . . Combat | -11 -10 -9 -8 -7 -6 -6 -5 -------- Run | Yrd Mat Mat Mat Fac Fac Ext Fac Hostile Shots Fired 859 | . 6 114 36 118 66 177 342 Missed 244 | . 1 33 13 32 26 60 79 Hits 615 | . 5 81 23 86 40 117 263 Melee 2 | . . . . 2 . . . Projectile 613 | . 5 81 23 84 40 117 263 AOE 2 | . . . . . . . 2 Critical Strikes 16 | . . . . 2 . . 14 Actively Blocked 1 | . . . . 1 . . . Part Disruptions 5 | . . . . . . . 5 Damage Taken 8875 | . 77 972 443 1071 372 1180 4760 Core 1411 | . 29 149 58 38 64 46 1027 Absorbed by Shields 121 | . . . . . . 9 112 Redirected to Shielding 163 | . . . . 53 24 75 11 Regen/Repaired (Parts) 261 | . . . . 261 . . . Core Remaining (%) 86 | 100 88 62 89 94 . 87 . Volleys Fired 232 | . 2 64 16 35 17 44 54 Largest 4 | . 2 2 2 3 4 4 4 Hottest 276 | . 80 96 89 147 166 178 276 Shots Fired 530 | . 4 125 29 98 42 117 115 Gun 319 | . 4 115 5 62 18 55 60 Cannon 175 | . . . 11 32 17 61 54 Launcher 35 | . . 10 13 4 7 1 . Special 1 | . . . . . . . 1 Kinetic 175 | . . 39 9 38 . 27 62 Thermal 255 | . 2 64 5 25 35 89 35 Explosive 35 | . . 10 13 4 7 1 . Electromagnetic 64 | . 2 12 2 31 . . 17 Robot Hit Streak 19 | . 2 12 4 10 11 19 9 Robot Miss Streak 10 | . 2 6 6 2 2 3 10 Penetration Max 2 | . . . . 1 . . 2 Secondary Targets 3 | . . 3 . . . . . Max Gunslinging Chain 1 | . . 1 . . . . . Shots Hit Robots 332 | . 2 76 16 62 19 73 84 Core Hits 193 | . 1 38 29 28 16 46 35 Critical Kills 7 | . . . . . . 3 4 Critical Parts Destroyed 6 | . . 1 . . . 4 1 Critical Strikes 35 | . . 9 . 3 2 11 10 Burn 16 | . . 8 . 2 2 3 1 Meltdown 1 | . . . . . . . 1 Destroy 13 | . . 1 . . . 8 4 Blast 1 | . . . . 1 . . . Corrupt 3 | . . . . . . . 3 Sever 1 | . . . . . . . 1 Melee Attacks 17 | . . . . . . . 17 Impact . | . . . . . . . . Slashing 17 | . . . . . . . 17 Piercing . | . . . . . . . . Sneak Attacks . | . . . . . . . . Combat Hostiles . | . . . . . . . . Follow-up Attacks . | . . . . . . . . Damage Inflicted 9537 | . 25 1529 1063 1448 891 2207 2374 Guns 3642 | . 25 1074 28 851 148 807 709 Cannons 2812 | . . . 157 453 281 1154 767 Explosions 2503 | . . 455 878 97 462 194 417 Melee 481 | . . . . . . . 481 Ramming 99 | . . . . 47 . 52 . Kinetic 2149 | . . 357 105 497 . 342 848 Thermal 3721 | . 12 638 28 459 429 1619 536 Explosive 2464 | . . 416 878 97 462 194 417 Electromagnetic 623 | . 13 118 52 348 . . 92 Impact . | . . . . . . . . Slashing 481 | . . . . . . . 481 Piercing . | . . . . . . . . Highest Corruption 25 | . . . 1 6 . . 25 Average Corruption 8 | . . . 1 4 . . 13 Corruption Purged . | . . . . . . . . Corruption Blocked . | . . . . . . . . Effects 54 | . . . 1 15 . . 38 Message Errors 8 | . . . . 3 . . 5 Matter Fused 12 | . . . . 4 . . 8 Heat Flow Errors 8 | . . . 1 2 . . 5 Energy Discharges 8 | . . . . 2 . . 6 Parts Rejected 2 | . . . . . . . 2 Parts Fused 1 | . . . . 1 . . . Data Loss (minor) 5 | . . . . 1 . . 4 Data Loss (major) 1 | . . . . . . . 1 Misfires 2 | . . . . . . . 2 Alerts 2 | . . . . 1 . . 1 Misdirections 2 | . . . . . . . 2 Weapon Failures 3 | . . . . 1 . . 2 Overload Shots . | . . . . . . . . Overflow Damage 258 | . . 18 148 . 30 16 46 Projectiles 46 | . . . . . 30 16 . Explosions 166 | . . 18 148 . . . . Melee 46 | . . . . . . . 46 Knockbacks 10 | . . . 3 1 . 1 5 Impact . | . . . . . . . . Kinetic 9 | . . . 2 1 . 1 5 Secondary 1 | . . . 1 . . . . Self-Inflicted Damage 231 | . . 39 192 . . . . Shots 7 | . . 1 6 . . . . Rammed 8 | . . . . 5 . 3 . Targets Rammed 9 | . . . . 6 . 3 . Kicked . | . . . . . . . . Crushed 1 | . . . . 1 . . . Highest Temperature 538 | . 51 375 283 365 296 461 538 Average Temperature 137 | . 27 62 133 140 114 122 185 Received Heat Transfer 1591 | . 42 270 18 138 . 228 895 Effects 23 | . . 2 . 5 1 1 14 Shutdowns 4 | . . . . . . 1 3 Energy Bleed 3 | . . 1 . 1 1 . . Interference 11 | . . . . 4 . . 7 Matter Decay 2 | . . 1 . . . . 1 Short Circuit 1 | . . . . . . . 1 Damage (minor) 2 | . . . . . . . 2 Siege Activations . | . . . . . . . . Martial Activations . | . . . . . . . . Shielding Activations . | . . . . . . . . Robots Disrupted . | . . . . . . . . Combat Hostiles . | . . . . . . . . Robots Corrupted . | . . . . . . . . Combat Hostiles . | . . . . . . . . Parts Fried . | . . . . . . . . Impact Corruptions . | . . . . . . . . Robots Melted 3 | . . . . 1 . 1 1 Combat Hostiles 3 | . . . . 1 . 1 1 Parts Melted 15 | . . 3 . 2 . 8 2 Heat Transferred 8122 | . 25 2160 74 975 944 3026 918 Parts Sabotaged . | . . . . . . . . Parts Stolen . | . . . . . . . . Parts Stripped . | . . . . . . . . Power Chain Reactions 1 | . . 1 . . . . . Alert | -11 -10 -9 -8 -7 -6 -6 -5 ------- Run | Yrd Mat Mat Mat Fac Fac Ext Fac Maximum Alert Level 1 | . . 1 1 . . . 1 Low Security (%) 97 | 100 100 90 91 100 100 100 97 Level 1 2 | . . 9 8 . . . 2 Level 2 . | . . . . . . . . Level 3 . | . . . . . . . . Level 4 . | . . . . . . . . Level 5 . | . . . . . . . . High Security . | . . . . . . . . Max Security . | . . . . . . . . Peak Influence 239 | . 35 239 223 73 150 178 205 Initial 95 | . . 14 95 56 19 61 84 Average 57 | . 6 53 137 20 18 70 68 Influence Increases 3202 | . 45 656 399 347 232 899 624 Destroy 0b10 Robot/C 1600 | . . 420 160 220 40 520 240 Destroy 0b10 Robot/NC 135 | . . 20 35 20 20 30 10 Destroy Leader 318 | . . 104 32 62 22 46 52 Allied During Kill 239 | . . . . . . 213 26 Successful Hack 52 | . . 12 . . . 40 . Disable Machine 225 | . . . 45 . 90 15 75 Destroy Structure 378 | . . 55 112 30 60 35 86 Lose Combat Pursuer 255 | . 45 45 15 15 . . 135 Influence Decreases 3202 | . 10 464 502 431 146 853 796 Entered New Map 395 | . . 21 132 68 21 65 88 Time Decay 2096 | . 10 424 310 323 125 515 389 Lost Part 378 | . . 19 60 40 . 20 239 Lost Ally 333 | . . . . . . 253 80 Squads Dispatched 24 | . 2 1 2 4 1 1 13 Investigation 3 | . 1 . . 1 . 1 . Extermination 6 | . . . . 2 1 . 3 Reinforcement 11 | . 1 1 2 1 . . 6 Assault . | . . . . . . . . Garrison 4 | . . . . . . . 4 Intercept . | . . . . . . . . Searches Triggered . | . . . . . . . . Construction Impeded 2 | . . . 1 . . . 1 Haulers Reinforced . | . . . . . . . . Active Scanning Responses . | . . . . . . . . Cargo Convoy Interrupts 1 | . . . . . . . 1 Stealth | -11 -10 -9 -8 -7 -6 -6 -5 --------- Run | Yrd Mat Mat Mat Fac Fac Ext Fac Distress Signals 5 | . . 1 1 1 . 1 1 Communications Jammed 5 | . . . . . . 5 . Distress Signals 5 | . . . . . . 5 . Times Spotted 124 | . 7 27 11 15 5 27 32 Peak Tracking Total 12 | . 6 4 5 4 1 5 12 Tactical Retreats 10 | . 2 3 1 1 . . 3 Traps | -11 -10 -9 -8 -7 -6 -6 -5 ------- Run | Yrd Mat Mat Mat Fac Fac Ext Fac Traps Triggered 9 | . . . 1 3 . 1 4 Indirectly . | . . . . . . . . Trap Hack Attempts . | . . . . . . . . Triggered . | . . . . . . . . Disarmed . | . . . . . . . . Reprogrammed . | . . . . . . . . Reused . | . . . . . . . . Traps Extracted . | . . . . . . . . Installed . | . . . . . . . . Triggered . | . . . . . . . . Machines | -11 -10 -9 -8 -7 -6 -6 -5 ---------- Run | Yrd Mat Mat Mat Fac Fac Ext Fac Machines Disabled 19 | . . . 3 . 6 5 5 Max in Single Turn 3 | . . . 1 . 3 1 2 Machines Repaired . | . . . . . . . . Machines Dismantled . | . . . . . . . . Machines Sabotaged . | . . . . . . . . Overloaded Fab Kills . | . . . . . . . . Hacking | -11 -10 -9 -8 -7 -6 -6 -5 --------- Run | Yrd Mat Mat Mat Fac Fac Ext Fac Machines Accessed 24 | . 1 4 1 4 . 13 1 Terminals 18 | . . 2 1 1 . 13 1 Fabricators 2 | . . . . 2 . . . Repair Stations 2 | . 1 . . 1 . . . Recycling Units 2 | . . 2 . . . . . Scanalyzers . | . . . . . . . . Garrison Access . | . . . . . . . . Total Hacks 54 | . 3 9 4 7 . 28 3 Successful 21 | . . 5 . 6 . 10 . Failed 33 | . 3 4 4 1 . 18 3 Catastrophic 6 | . 2 . 1 1 . 2 . Database Lockouts . | . . . . . . . . Manual . | . . . . . . . . Terminals 41 | . . 5 4 1 . 28 3 Fabricators 2 | . . . . 2 . . . Repair Stations 7 | . 3 . . 4 . . . Recycling Units 4 | . . 4 . . . . . Scanalyzers . | . . . . . . . . Garrison Access . | . . . . . . . . Terminal Hacks 13 | . . 2 . 1 . 10 . Prototype ID Bank 2 | . . . . . . 2 . Open Door 6 | . . . . . . 6 . Open DSF 1 | . . . . 1 . . . Alert Level 1 | . . . . . . 1 . Locate Traps 1 | . . . . . . 1 . Recall Investigation 1 | . . 1 . . . . . Zone Layout 1 | . . 1 . . . . . Fabricator Hacks 1 | . . . . 1 . . . Network Status 1 | . . . . 1 . . . Repair Station Hacks 4 | . . . . 4 . . . Scan Component 2 | . . . . 2 . . . Repair 2 | . . . . 2 . . . Recycling Unit Hacks 3 | . . 3 . . . . . Report Inventory 1 | . . 1 . . . . . Retrieve Components 2 | . . 2 . . . . . Scanalyzer . | . . . . . . . . Garrison Access Hacks . | . . . . . . . . Unauthorized Hacks . | . . . . . . . . Terminals . | . . . . . . . . Fabricators . | . . . . . . . . Repair Stations . | . . . . . . . . Recycling Units . | . . . . . . . . Scanalyzers . | . . . . . . . . Garrison Access . | . . . . . . . . Data Cores Recovered 2 | . . 1 1 . . . . Used . | . . . . . . . . Hacking Detections 16 | . 1 2 1 3 . 8 1 Full Trace Events 2 | . 1 . . . . 1 . Feedback Events . | . . . . . . . . Feedback Blocked . | . . . . . . . . Robot Schematics Acquired . | . . . . . . . . Robots Built . | . . . . . . . . Authchips . | . . . . . . . . Time . | . . . . . . . . Total Robot Build Rating . | . . . . . . . . Part Schematics Acquired . | . . . . . . . . Parts Built . | . . . . . . . . Authchips . | . . . . . . . . Time . | . . . . . . . . Total Part Build Rating . | . . . . . . . . Parts Repaired 2 | . . . . 2 . . . Time 64 | . . . . 64 . . . Parts Recycled . | . . . . . . . . Recycled Matter . | . . . . . . . . Retrieved Matter . | . . . . . . . . Retrieved Components 12 | . . 12 . . . . . Parts Scanalyzed . | . . . . . . . . Part Schematics Acquired . | . . . . . . . . Parts Damaged . | . . . . . . . . Bothacking | -11 -10 -9 -8 -7 -6 -6 -5 ------------ Run | Yrd Mat Mat Mat Fac Fac Ext Fac Used RIF Installer . | . . . . . . . . Robots Hacked . | . . . . . . . . Non-combat . | . . . . . . . . Combat . | . . . . . . . . Robot Hacks Applied . | . . . . . . . . Relay Couplers Released . | . . . . . . . . Fabnet Peak Effective % . | . . . . . . . . Robots Rewired 18 | . . . . . . 18 . Allies Hacked . | . . . . . . . . Hacks Repelled . | . . . . . . . . Allies | -11 -10 -9 -8 -7 -6 -6 -5 -------- Run | Yrd Mat Mat Mat Fac Fac Ext Fac Total Allies 24 | . . . . . . 24 . Largest Group 10 | . . . . . . 10 9 Highest-Rated Group 443 | . . . . . . 443 284 Highest-Rated Ally 159 | . . . . . . 159 39 Total Orders . | . . . . . . . . Ally Attacks 125 | . . . . . . 103 22 Total Damage 2642 | . . . . . . 2353 289 Kills 16 | . . . . . . 16 . Allies Corrupted . | . . . . . . . . Allies Melted 1 | . . . . . . 1 . Intel | -11 -10 -9 -8 -7 -6 -6 -5 ------- Run | Yrd Mat Mat Mat Fac Fac Ext Fac Active Infowar (turns) 3107 | . . . . . 734 1805 568 Sensors 549 | . . . . . . . 549 Cloaking 137 | . . . . . . . 137 Jamming 3058 | . . . . . 734 1805 519 Robot Analysis Total . | . . . . . . . . Derelict Logs Recovered . | . . . . . . . . Drone Launches 2 | . . . . . . . 2 Drone Recoveries . | . . . . . . . . Exploration | -11 -10 -9 -8 -7 -6 -6 -5 ------------- Run | Yrd Mat Mat Mat Fac Fac Ext Fac Turns Passed 7043 | 62 109 1119 691 1343 735 1805 1179 Spaces Moved 3742 | 51 97 587 336 686 414 906 665 Core 1 | 1 . . . . . . . Treads 2931 | . . 481 234 686 414 906 210 Legs 312 | . . . 99 . . . 213 Wheels 253 | 50 97 106 . . . . . Hover 242 | . . . . . . . 242 Flight 3 | . . . 3 . . . . Fastest Speed 50 | 50 90 90 160 160 160 162 108 Average Speed 153 | 90 103 150 173 160 161 162 137 Slowest Speed 585 | 100 105 160 585 160 162 243 320 Overloaded Moves . | . . . . . . . . Propulsion Burnouts . | . . . . . . . . Robots Hopped . | . . . . . . . . Potential Cave-ins . | . . . . . . . . Cave-ins Triggered . | . . . . . . . . Exploration Rate (%) 28 | 3 27 47 31 13 8 91 9 Regions Visited 7 Branch Regions 1 Pre-discovered Areas . | . . . . . . . . Known Exits Taken . | . . . . . . . . Unknown Exits Taken 7 | 1 1 1 1 1 1 1 . Scrap Searched . | . . . . . . . . Spaces Dug 25 | . . . 10 8 . . 7 Terrain Destroyed 390 | . . 71 136 31 71 28 53 Melee . | . . . . . . . . Projectile 32 | . . . . 3 3 13 13 AOE 357 | . . 71 136 28 68 15 39 Terrain Rammed . | . . . . . . . . Walls Destroyed . | . . . . . . . . Machines Disabled . | . . . . . . . . Actions | -11 -10 -9 -8 -7 -6 -6 -5 --------- Run | Yrd Mat Mat Mat Fac Fac Ext Fac Total 4554 | 63 102 707 416 846 451 1159 810 Wait 137 | . 2 10 9 75 3 28 10 Move 3735 | 50 96 586 335 685 413 905 665 Hop . | . . . . . . . . Pick Up 82 | 7 . 17 20 10 6 9 13 Fast Attach 31 | 5 1 2 1 4 . 2 16 Attach 48 | 1 . 6 10 7 2 1 21 Detach . | . . . . . . . . Swap 57 | . . 9 14 16 4 8 6 Drop 55 | . 1 13 11 8 6 13 3 Fire 232 | . 2 64 16 35 17 44 54 Melee 17 | . . . . . . . 17 Ram . | . . . . . . . . Kick . | . . . . . . . . Crush 9 | . . . . 6 . 3 . Escape Stasis . | . . . . . . . . Rewire 151 | . . . . . . 146 5 Trap . | . . . . . . . . Miscellaneous . | . . . . . . . . Route ------- -11/Scrapyard -10/Materials -9/Materials (discovered 2 exits: *Mat / [*Min]) -8/Materials -7/Factory -6/Factory (discovered 2 exits: *Fac / *Ext) -6/Extension (discovered 3 exits: *Fac x2 / [*Cet]) -5/Factory History --------- Turn | Location | Event 26 | -11/Scrapyard | Discovered new exit (range 15) 63 | -11/Scrapyard | Entered Materials 169 | -10/Materials | Discovered new exit (range 4) 172 | -10/Materials | Entered another Materials area 172 | -9/Materials | Evolved 2 slots: Propulsion x2 302 | -9/Materials | Build established: Mutant 358 | -9/Materials | Lost 3 parts (1p1n1w) 652 | -9/Materials | Discovered new exit (range 14) 654 | -9/Materials | Build established: Scavenger-Mutant 1149 | -9/Materials | Destroyed 7 combat bots 1266 | -9/Materials | Discovered new exit (range 9) 1291 | -9/Materials | Entered another Materials area 1291 | -8/Materials | Evolved 2 slots: Power x1, Utility x1 1523 | -8/Materials | Lost 4 parts (3n1w) 1943 | -8/Materials | Build established: Mutant 1944 | -8/Materials | Discovered new exit (range 5) 1982 | -8/Materials | Entered Factory 1982 | -7/Factory | Evolved 2 slots: Utility x1, Weapon x1 2513 | -7/Factory | Build established: Gunner 2811 | -7/Factory | Discovered new exit (range 8) 3159 | -7/Factory | Repaired Imp. Treads 3193 | -7/Factory | Repaired Imp. Treads 3325 | -7/Factory | Entered another Factory area 3325 | -6/Factory | Evolved 2 slots: Utility x1, Weapon x1 3454 | -6/Factory | Discovered new exit (range 15) 4045 | -6/Factory | Discovered new exit (range 10) 4060 | -6/Factory | Entered Extension 4136 | -6/Extension | Rescued a captive Derelict 4581 | -6/Extension | Rescued a captive Derelict 4748 | -6/Extension | Spotted B-75 Beast 4762 | -6/Extension | Build established: Commander-Gunner 4784 | -6/Extension | Spotted B-75 Beast 4803 | -6/Extension | Destroyed B-75 Beast 4825 | -6/Extension | Lost 13 allies 4840 | -6/Extension | Discovered new exit (range 4) 4999 | -6/Extension | Discovered new exit (range 16) 4999 | -6/Extension | Discovered new exit (range 16) 5120 | -6/Extension | Rescued a captive Derelict 5121 | -6/Extension | Rescued a captive Derelict 5166 | -6/Extension | Build established: Scavenger-Gunner 5337 | -6/Extension | Rescued A7 5468 | -6/Extension | Rescued a captive Derelict 5693 | -6/Extension | Build established: Commander-Gunner 5865 | -6/Extension | Entered Factory 5865 | -5/Factory | Accompanied by 10 allies (A7) 5865 | -5/Factory | Evolved 2 slots: Propulsion x1, Utility x1 6256 | -5/Factory | Lost 9 allies 6267 | -5/Factory | Garrison activated, responded to threat 6317 | -5/Factory | Lost 11 parts (2p4n1u4w) 6447 | -5/Factory | System corruption reached 10% 6496 | -5/Factory | Lost 7 parts (2p4u1w) 6680 | -5/Factory | Lost 6 parts (3n1u2w) 6759 | -5/Factory | Cargo convoy interrupted 6951 | -5/Factory | Garrison activated, responded to threat 7019 | -5/Factory | Lost 3 parts (3n) 7041 | -5/Factory | Core integrity fell below 50% 7043 | -5/Factory | Core integrity fell below 20% 7044 | -5/Factory | Destroyed by H-71 Marshal with Heavy Mass Driver Last Messages --------------- 07037_ Linear Gravjet destroyed. 07037_ Mic. Fission Core destroyed. 07038_ U-05 Engineer works on Assembly Bed. 07038_ Adv. Targeting Computer destroyed. 07039_ K-01 Serf collects debris. 07039_ Critical hit (Burn: +37). 07039_ Wave Gun destroyed. 07040_ Mic. Fission Core broken. 07040_ Overheating: Short circuit. 07040_ Slug penetrates Wall. 07040_ Broken Mic. Fission Core destroyed. 07040_ Knocked back. 07040_ Mic. Fission Core destroyed. 07040_ U-05 Engineer works on Assembly Bed. 07041_ Critical hit (Burn: +37). 07041_ Tesla Rifle destroyed. 07042_ K-01 Serf collects debris. 07042_ P-70 Sage repels hacking attempt. 07044_ U-05 Engineer works on Assembly Bed. 07044_ P-70 Sage resets P-70 Sage, system corruption cleaned. Map ----- +----------------------------------------------------+ | #???????????????????????????????????????? | | """ #???????????????????????????????????????? | | """ #???????????????????????????????????????? | | """ """#???????????????????????????????????????? | | """#???????????????????????????????????????? | | R"#???????????????????????????????????????? | | """#???????????????????????????????????????? | | #???????????????????????????????????????? | | #######+##???????????????????????????????????????? | | ??????# #????????????????????????????????????????? | | ???###########???????????????????????????????????? | | ???# #???????????????????????????????????? | | #### [ !###?????????????????????????????????? | | #[ ##############??????????????????????? | | # # #??????????????????????? | | # # #??????????????????????? | | # # #??????????????????????? | | # # #??????????????????????? | | # % # #??????????????????????? | | ###/####### << #??????????????????????? | | % + << !#??????????????????????? | | ! #### << #??????????????????????? | | %""#### u< g gg #??????????????????????? | | """ ""##?# < <%p #??????????????????????? | | " """ G#??#